[Event "POL-chT 2 Liga 2019"]
[Site "Poronin"]
[Date "2019.09.13"]
[Round "7.53"]
[White "Borowski, Przemyslaw"]
[Black "Krasiewicz, Robert"]
[Result "0-1"]
[ECO "A04"]
[WhiteElo "1765"]
[BlackElo "2044"]
[Annotator "NA"]
[PlyCount "94"]
[EventDate "2019.09.07"]
[EventType "team-tourn"]
[EventCountry "POL"]
[SourceTitle "playchess.com"]
[Source "ChessBase"]
[SourceQuality "1"]
[TimeControl "40/5400+30:1800+30"]

1. Nf3 {[%emt 0:00:00]} c5 {[%emt 0:00:11]} 2. g3 {[%emt 0:00:00]} Nc6 {[%emt 0:00:13]} 3. Bg2 {[%emt 0:00:00]} g6 {[%emt 0:00:10]} 4. O-O {[%emt 0:00:16]} Bg7 {[%emt 0:00:06]} 5. d3 {[%emt 0:00:18]} d6 {[%emt 0:02:11]} 6. e4 {[%emt 0:01:26]} Nf6 {[%emt 0:02:52]} 7. c3 {[%emt 0:00:36]} O-O {[%emt 0:00:38]} 8. Qe2 {[%emt 0:00:41]} e5 {[%emt 0:05:12]} 9. a4 {[%emt 0:00:46]} Re8 {[%emt 0:02:04]} 10. Nbd2 {[%emt 0:00:56]} a6 {[%emt 0:01:00]} 11. Nc4 {[%emt 0:01:42]} Rb8 {[%emt 0:07:31]} 12. a5 {[%emt 0:03:38]} Be6 {[%emt 0:02:31]} 13. Nfd2 {[%emt 0:02:37]} d5 {[%emt 0:02:08]} 14. Nb6 {[%emt 0:04:20]} dxe4 {[%emt 0:02:59]} 15. dxe4 {[%emt 0:09:31]} Nxa5 {[%emt 0:00:43]} 16. Nbc4 {[%emt 0:18:09]} Nxc4 {[%emt 0:07:31]} 17. Nxc4 {[%emt 0:00:09]} Qc7 {[%emt 0:03:10]} 18. f4 {[%emt 0:01:38]} Nd7 {[%emt 0:08:37]} 19. f5 {[%emt 0:00:30]} Bxc4 {[%emt 0:00:21]} 20. Qxc4 {[%emt 0:00:18]} Nb6 {[%emt 0:01:52]} 21. Qe2 {[%emt 0:03:33]} Red8 {[%emt 0:12:35]} 22. Be3 {[%emt 0:00:39]} Rd6 {[%emt 0:00:58]} 23. Rf2 {[%emt 0:08:24]} Rbd8 {[%emt 0:06:39]} 24. Raf1 {[%emt 0:00:46]} Rd3 {[%emt 0:07:38]} 25. fxg6 {[%emt 0:00:24]} fxg6 {[%emt 0:00:16]} 26. Bg5 {[%emt 0:03:20]} R8d6 {[%emt 0:00:57]} 27. Bh3 {[%emt 0:01:32]} c4 {[%emt 0:00:48]} 28. Qg4 h5 {[%emt 0:03:16]} 29. Qh4 {[%emt 0:08:25]} Rd1 {[%emt 0:03:02]} 30. g4 {[%emt 0:07:07]} Rxf1+ {[%emt 0:00:53]} 31. Rxf1 {[%emt 0:01:31]} hxg4 {[%emt 0:04:39]} 32. Bxg4 {[%emt 0:03:34]} Na4 {[%emt 0:00:18]} 33. Be7 {[%emt 0:04:01]} Nxb2 {[%emt 0:02:52]} 34. Bxd6 {[%emt 0:01:34]} Qxd6 {[%emt 0:00:02]} 35. Qh3 {[%emt 0:00:48]} Bf6 {[%emt 0:00:28]} 36. Be6+ {[%emt 0:06:29]} Kg7 {[%emt 0:00:02]} 37. Bd5 {[%emt 0:01:09]} Nd3 {[%emt 0:00:19]} 38. Qc8 {[%emt 0:07:24]} b5 {[%emt 0:04:04]} 39. Qg8+ {[%emt 0:00:29]} Kh6 {[%emt 0:00:01]} 40. Bf7 {[%emt 0:00:00]} Bg7 {[%emt 0:00:00]} 41. Kh1 {[%emt 0:11:28]} Nf4 {[%emt 0:01:05]} 42. Qc8 {[%emt 0:04:20]} Qd3 {[%emt 0:01:37]} 43. Rxf4 {[%emt 0:08:19]} exf4 {[%emt 0:00:22]} 44. Kg1 {[%emt 0:00:26]} Qe3+ {[%emt 0:00:41]} 45. Kf1 {[%emt 0:00:25]} Bxc3 {[%emt 0:02:22]} 46. Qf8+ {[%emt 0:02:45]} Bg7 {[%emt 0:01:13]} 47. Qe7 {[%emt 0:00:59]} Qf3+ {[%emt 0:00:36]} 0-1

[Event "POL-chT 2 Liga 2019"]
[Site "Poronin"]
[Date "2019.09.13"]
[Round "7.54"]
[White "Andrzejewska, Anna"]
[Black "Czaplewska, Klara"]
[Result "0-1"]
[ECO "C50"]
[WhiteElo "2021"]
[BlackElo "1870"]
[Annotator "NA"]
[PlyCount "94"]
[EventDate "2019.09.07"]
[EventType "team-tourn"]
[EventCountry "POL"]
[SourceTitle "playchess.com"]
[Source "ChessBase"]
[SourceQuality "1"]
[TimeControl "40/5400+30:1800+30"]

1. e4 {[%emt 0:00:00]} e5 {[%emt 0:00:00]} 2. Nf3 {[%emt 0:00:00]} Nc6 {[%emt 0:00:00]} 3. Bc4 {[%emt 0:00:13]} Bc5 {[%emt 0:00:00]} 4. O-O {[%emt 0:00:29]} Nf6 {[%emt 0:00:14]} 5. d4 {[%emt 0:01:04]} Bxd4 {[%emt 0:00:17]} 6. Nxd4 {[%emt 0:00:31]} Nxd4 {[%emt 0:00:08]} 7. f4 {[%emt 0:00:28]} d6 {[%emt 0:04:59]} 8. fxe5 {[%emt 0:00:43]} dxe5 {[%emt 0:00:07]} 9. Bg5 {[%emt 0:00:27]} Be6 {[%emt 0:05:49]} 10. Na3 {[%emt 0:00:53]} Qe7 {[%emt 0:10:50]} 11. c3 {[%emt 0:09:00]} Bxc4 {[%emt 0:03:12]} 12. Bxf6 {[%emt 0:17:06]} gxf6 {[%emt 0:00:55]} 13. Nxc4 {[%emt 0:03:14]} Qc5 {[%emt 0:15:51]} 14. cxd4 {[%emt 0:02:01]} Qxc4 {[%emt 0:03:22]} 15. dxe5 {[%emt 0:01:12]} fxe5 {[%emt 0:00:24]} 16. Rc1 {[%emt 0:10:20]} Qe6 {[%emt 0:05:53]} 17. Qa4+ {[%emt 0:29:00]} c6 {[%emt 0:00:46]} 18. Qa3 {[%emt 0:02:36]} a6 {[%emt 0:06:35]} 19. Rf5 {[%emt 0:14:24]} O-O-O {[%emt 0:02:05]} 20. Qc5 {[%emt 0:01:55]} Rhe8 {[%emt 0:09:47]} 21. a4 {[%emt 0:00:27]} Rd4 {[%emt 0:06:39]} 22. b4 {[%emt 0:00:44]} Rxe4 {[%emt 0:03:58]} 23. Rf2 {[%emt 0:01:37]} Qe7 {[%emt 0:00:51]} 24. Qxe7 {[%emt 0:02:56]} Rxe7 {[%emt 0:00:02]} 25. b5 {[%emt 0:00:13]} Kc7 {[%emt 0:02:09]} 26. bxc6 {[%emt 0:00:43]} bxc6 {[%emt 0:00:02]} 27. Rf6 {[%emt 0:00:35]} Rxa4 {[%emt 0:02:08]} 28. Rfxc6+ {[%emt 0:00:23]} Kb7 {[%emt 0:01:34]} 29. Rf6 {[%emt 0:00:23]} Rf4 {[%emt 0:05:51]} 30. Rxf4 {[%emt 0:00:41]} exf4 {[%emt 0:00:02]} 31. Rc4 {[%emt 0:00:18]} f3 {[%emt 0:00:28]} 32. gxf3 {[%emt 0:00:11]} a5 {[%emt 0:01:31]} 33. Kf2 {[%emt 0:00:45]} Kb6 {[%emt 0:00:34]} 34. Rh4 {[%emt 0:00:34]} Ra7 {[%emt 0:03:25]} 35. Rxh7 {[%emt 0:00:31]} a4 {[%emt 0:00:08]} 36. Rh8 {[%emt 0:00:26]} a3 {[%emt 0:01:03]} 37. Rb8+ {[%emt 0:00:06]} Ka5 {[%emt 0:01:32]} 38. Rb1 {[%emt 0:00:46]} a2 {[%emt 0:00:11]} 39. Ra1 {[%emt 0:00:03]} Kb4 {[%emt 0:00:04]} 40. Kg3 {[%emt 0:00:00]} Kb3 {[%emt 0:00:00]} 41. h4 {[%emt 0:01:54]} Kb2 {[%emt 0:00:43]} 42. Rxa2+ {[%emt 0:00:25]} Rxa2 {[%emt 0:00:05]} 43. Kg4 {[%emt 0:00:14]} Kc3 {[%emt 0:00:15]} 44. h5 {[%emt 0:00:23]} Rh2 {[%emt 0:00:16]} 45. Kg5 {[%emt 0:00:39]} Kd4 {[%emt 0:00:22]} 46. f4 {[%emt 0:00:27]} Ke4 {[%emt 0:00:17]} 47. h6 {[%emt 0:01:38]} f5 {[%emt 0:01:06]} 0-1

[Event "POL-chT 2 Liga 2019"]
[Site "Poronin"]
[Date "2019.09.14"]
[Round "8.1"]
[White "Lewicki, Miroslaw"]
[Black "Maciejczak, Jakub"]
[Result "0-1"]
[ECO "B17"]
[WhiteElo "2351"]
[BlackElo "2383"]
[Annotator "NA"]
[PlyCount "90"]
[EventDate "2019.09.07"]
[EventType "team-tourn"]
[EventCountry "POL"]
[SourceTitle "playchess.com"]
[Source "ChessBase"]
[SourceQuality "1"]
[TimeControl "40/5400+30:1800+30"]

1. e4 {[%emt 0:00:00]} c6 {[%emt 0:00:00]} 2. d4 {[%emt 0:00:00]} d5 {[%emt 0:00:00]} 3. Nd2 {[%emt 0:00:42]} dxe4 {[%emt 0:00:00]} 4. Nxe4 {[%emt 0:00:09]} Nd7 {[%emt 0:00:23]} 5. Nf3 {[%emt 0:01:53]} Ngf6 {[%emt 0:00:17]} 6. Ng3 {[%emt 0:00:47]} e6 {[%emt 0:00:22]} 7. Be2 {[%emt 0:00:16]} Be7 {[%emt 0:06:12]} 8. O-O {[%emt 0:00:20]} O-O {[%emt 0:00:14]} 9. b3 {[%emt 0:00:43]} Nd5 {[%emt 0:12:09]} 10. Bb2 {[%emt 0:01:01]} Nf4 {[%emt 0:03:16]} 11. Re1 {[%emt 0:02:11]} Nxe2+ {[%emt 0:00:56]} 12. Qxe2 {[%emt 0:00:07]} b6 {[%emt 0:08:53]} 13. Rad1 {[%emt 0:01:21]} Bb7 {[%emt 0:05:50]} 14. a3 {[%emt 0:01:43]} Qc7 {[%emt 0:07:19]} 15. c4 {[%emt 0:01:20]} Rfe8 {[%emt 0:05:48]} 16. h3 {[%emt 0:05:19]} Nf6 {[%emt 0:04:29]} 17. Ne5 {[%emt 0:02:15]} Bf8 {[%emt 0:15:31]} 18. Ng4 {[%emt 0:03:45]} Nxg4 {[%emt 0:00:27]} 19. Qxg4 {[%emt 0:00:05]} f5 {[%emt 0:00:57]} 20. Qf3 {[%emt 0:01:54]} Rad8 {[%emt 0:04:00]} 21. Nh5 {[%emt 0:02:01]} Qf7 {[%emt 0:02:58]} 22. Nf4 {[%emt 0:04:29]} c5 {[%emt 0:03:30]} 23. Qc3 {[%emt 0:03:12]} Bd6 {[%emt 0:03:57]} 24. Ne2 {[%emt 0:02:09]} Qg6 {[%emt 0:00:59]} 25. f3 {[%emt 0:00:30]} cxd4 {[%emt 0:03:30]} 26. Nxd4 {[%emt 0:00:05]} Bg3 {[%emt 0:00:53]} 27. Rf1 {[%emt 0:02:20]} Be5 {[%emt 0:00:16]} 28. Qe1 {[%emt 0:01:52]} Bb8 {[%emt 0:02:58]} 29. Ne2 {[%emt 0:04:52]} e5 {[%emt 0:01:29]} 30. Nc3 {[%emt 0:04:12]} e4 {[%emt 0:01:32]} 31. Rxd8 {[%emt 0:04:17]} Rxd8 {[%emt 0:00:05]} 32. fxe4 {[%emt 0:06:24]} fxe4 {[%emt 0:00:07]} 33. Qe2 {[%emt 0:04:48]} h6 {[%emt 0:01:52]} 34. Rd1 {[%emt 0:01:12]} Rf8 {[%emt 0:02:32]} 35. Rf1 {[%emt 0:02:09]} Rd8 {[%emt 0:00:05]} 36. Rd1 {[%emt 0:00:07]} Rf8 {[%emt 0:00:05]} 37. Rf1 {[%emt 0:00:09]} Rf3 {[%emt 0:01:50]} 38. Qd2 {[%emt 0:06:45]} Rd3 {[%emt 0:01:43]} 39. Qf2 {[%emt 0:00:33]} Bd6 {[%emt 0:00:49]} 40. Qe2 {[%emt 0:00:00]} Rxh3 {[%emt 0:00:00]} 41. Nb5 {[%emt 0:05:41]} Bh2+ {[%emt 0:04:57]} 42. Kh1 {[%emt 0:00:06]} e3 {[%emt 0:00:42]} 43. Nd4 {[%emt 0:02:14]} Be5+ {[%emt 0:02:57]} 44. Kg1 {[%emt 0:00:10]} Bxd4 {[%emt 0:01:14]} 45. Bxd4 {[%emt 0:00:25]} Rg3 {[%emt 0:00:08]} 0-1

[Event "POL-chT 2 Liga 2019"]
[Site "Poronin"]
[Date "2019.09.14"]
[Round "8.2"]
[White "Dudzinski, Piotr"]
[Black "Kozak, Antoni"]
[Result "1/2-1/2"]
[ECO "B13"]
[WhiteElo "2355"]
[BlackElo "2341"]
[Annotator "NA"]
[PlyCount "154"]
[EventDate "2019.09.07"]
[EventType "team-tourn"]
[EventCountry "POL"]
[SourceTitle "playchess.com"]
[Source "ChessBase"]
[SourceQuality "1"]
[TimeControl "40/5400+30:1800+30"]

1. e4 {[%emt 0:00:00]} c6 {[%emt 0:00:00]} 2. d4 {[%emt 0:00:00]} d5 {[%emt 0:00:00]} 3. exd5 {[%emt 0:00:00]} cxd5 {[%emt 0:00:00]} 4. Bd3 {[%emt 0:00:00]} Nc6 {[%emt 0:00:00]} 5. c3 {[%emt 0:00:02]} Qc7 {[%emt 0:00:00]} 6. Ne2 {[%emt 0:00:09]} Bg4 {[%emt 0:00:07]} 7. O-O {[%emt 0:00:08]} e6 {[%emt 0:00:54]} 8. f3 {[%emt 0:07:33]} Bh5 {[%emt 0:00:26]} 9. Bf4 {[%emt 0:01:06]} Bd6 {[%emt 0:00:17]} 10. Qd2 {[%emt 0:01:18]} Bg6 {[%emt 0:01:49]} 11. Bxd6 {[%emt 0:02:26]} Qxd6 {[%emt 0:00:05]} 12. Na3 {[%emt 0:01:21]} Nge7 {[%emt 0:00:56]} 13. Nc2 {[%emt 0:04:42]} f6 {[%emt 0:05:06]} 14. Kh1 {[%emt 0:11:36]} Bf7 {[%emt 0:02:26]} 15. Ne3 {[%emt 0:03:13]} O-O-O {[%emt 0:05:33]} 16. b4 {[%emt 0:02:54]} Kb8 {[%emt 0:00:07]} 17. a4 {[%emt 0:02:39]} Nc8 {[%emt 0:03:54]} 18. a5 {[%emt 0:02:31]} Bg6 {[%emt 0:22:12]} 19. b5 {[%emt 0:09:37]} N6e7 {[%emt 0:04:13]} 20. Nc2 {[%emt 0:08:08]} Bxd3 {[%emt 0:09:15]} 21. Qxd3 {[%emt 0:03:01]} Qc7 {[%emt 0:06:32]} 22. Rfb1 {[%emt 0:07:45]} Qc4 {[%emt 0:00:58]} 23. Qxc4 {[%emt 0:09:02]} dxc4 {[%emt 0:00:12]} 24. Ne3 {[%emt 0:00:15]} Nd6 {[%emt 0:00:06]} 25. Nf4 {[%emt 0:00:39]} Ng6 {[%emt 0:04:45]} 26. Nxe6 {[%emt 0:07:53]} Rde8 {[%emt 0:00:07]} 27. d5 {[%emt 0:00:07]} Nf8 {[%emt 0:00:03]} 28. Rb4 {[%emt 0:02:14]} Nxe6 {[%emt 0:00:24]} 29. dxe6 {[%emt 0:00:06]} Rxe6 {[%emt 0:00:03]} 30. Nxc4 {[%emt 0:00:29]} Rc8 {[%emt 0:00:04]} 31. Nxd6 {[%emt 0:00:10]} Rxd6 {[%emt 0:00:04]} 32. c4 {[%emt 0:05:17]} Rd4 {[%emt 0:00:52]} 33. Rc1 {[%emt 0:00:18]} Re8 {[%emt 0:00:05]} 34. b6 {[%emt 0:01:08]} axb6 {[%emt 0:01:32]} 35. axb6 {[%emt 0:02:07]} Re2 {[%emt 0:00:04]} 36. Rbb1 {[%emt 0:02:21]} Kc8 {[%emt 0:02:18]} 37. Ra1 {[%emt 0:01:57]} Rdd2 {[%emt 0:00:56]} 38. Rg1 {[%emt 0:00:32]} Kd7 {[%emt 0:03:30]} 39. Ra8 {[%emt 0:02:00]} Rc2 {[%emt 0:02:52]} 40. h3 {[%emt 0:00:00]} Kc6 {[%emt 0:00:00]} 41. Rg8 {[%emt 0:02:46]} Re7 {[%emt 0:50:52]} 42. Rb1 {[%emt 0:01:44]} Rce2 {[%emt 0:00:19]} 43. Rc8+ {[%emt 0:00:14]} Kd7 {[%emt 0:00:01]} 44. Rc7+ {[%emt 0:00:25]} Ke8 {[%emt 0:00:02]} 45. Kg1 {[%emt 0:14:01]} Rd7 {[%emt 0:06:59]} 46. c5 {[%emt 0:06:31]} Rxc7 {[%emt 0:00:45]} 47. bxc7 {[%emt 0:00:10]} Kd7 {[%emt 0:00:01]} 48. Rxb7 {[%emt 0:00:07]} Kc8 {[%emt 0:00:03]} 49. Ra7 {[%emt 0:00:05]} g6 {[%emt 0:02:07]} 50. g4 {[%emt 0:05:32]} Rc2 {[%emt 0:00:32]} 51. Ra8+ {[%emt 0:00:31]} Kxc7 {[%emt 0:00:03]} 52. Rh8 {[%emt 0:00:41]} Rxc5 {[%emt 0:00:06]} 53. Rxh7+ {[%emt 0:00:11]} Kd8 {[%emt 0:00:01]} 54. Rh6 {[%emt 0:00:13]} Ke7 {[%emt 0:00:20]} 55. Rxg6 {[%emt 0:00:25]} Kf7 {[%emt 0:00:03]} 56. Rh6 {[%emt 0:00:07]} Kg7 {[%emt 0:00:03]} 57. Rh4 {[%emt 0:01:37]} Rc2 {[%emt 0:00:53]} 58. Rh5 {[%emt 0:00:12]} Kg6 {[%emt 0:00:05]} 59. Rf5 {[%emt 0:00:10]} Ra2 {[%emt 0:00:04]} 60. h4 {[%emt 0:00:06]} Rb2 {[%emt 0:00:03]} 61. h5+ {[%emt 0:00:40]} Kg7 {[%emt 0:00:04]} 62. Kf1 {[%emt 0:00:13]} Ra2 {[%emt 0:00:06]} 63. Ke1 {[%emt 0:00:08]} Rb2 {[%emt 0:00:28]} 64. Rd5 {[%emt 0:00:04]} Kh6 {[%emt 0:00:24]} 65. Rd2 {[%emt 0:00:27]} Rb5 {[%emt 0:01:09]} 66. Kf2 {[%emt 0:00:13]} f5 {[%emt 0:00:02]} 67. Rd6+ {[%emt 0:06:08]} Kg5 {[%emt 0:00:13]} 68. Rg6+ {[%emt 0:00:04]} Kf4 {[%emt 0:00:02]} 69. Rf6 {[%emt 0:01:05]} Rb2+ {[%emt 0:00:08]} 70. Ke1 {[%emt 0:00:03]} Kxf3 {[%emt 0:02:32]} 71. gxf5 {[%emt 0:00:10]} Kg4 {[%emt 0:00:09]} 72. h6 {[%emt 0:00:06]} Rh2 {[%emt 0:00:04]} 73. Kf1 {[%emt 0:01:18]} Kg5 {[%emt 0:00:03]} 74. Rf8 {[%emt 0:00:03]} Rxh6 {[%emt 0:00:04]} 75. Kf2 {[%emt 0:00:04]} Rf6 {[%emt 0:00:03]} 76. Rxf6 {[%emt 0:00:05]} Kxf6 {[%emt 0:00:03]} 77. Kf3 {[%emt 0:00:03]} Kxf5 {[%emt 0:00:05] Ke4+ Ke5+} 1/2-1/2

[Event "POL-chT 2 Liga 2019"]
[Site "Poronin"]
[Date "2019.09.14"]
[Round "8.3"]
[White "Mis, Mieszko"]
[Black "Janaszak, Dawid"]
[Result "1/2-1/2"]
[ECO "E62"]
[WhiteElo "2320"]
[BlackElo "2351"]
[Annotator "NA"]
[PlyCount "83"]
[EventDate "2019.09.07"]
[EventType "team-tourn"]
[EventCountry "POL"]
[SourceTitle "playchess.com"]
[Source "ChessBase"]
[SourceQuality "1"]
[TimeControl "40/5400+30:1800+30"]

1. d4 {[%emt 0:00:00]} Nf6 {[%emt 0:00:00]} 2. c4 {[%emt 0:00:00]} g6 {[%emt 0:00:00]} 3. g3 {[%emt 0:02:10]} Bg7 {[%emt 0:01:39]} 4. Bg2 {[%emt 0:00:20]} O-O {[%emt 0:00:57]} 5. Nc3 {[%emt 0:00:45]} d6 {[%emt 0:01:09]} 6. Nf3 {[%emt 0:00:15]} Nc6 {[%emt 0:02:14]} 7. O-O {[%emt 0:00:09]} Rb8 {[%emt 0:01:56]} 8. b3 {[%emt 0:01:31]} a6 {[%emt 0:01:16]} 9. d5 {[%emt 0:02:08]} Na5 {[%emt 0:01:16]} 10. Bg5 {[%emt 0:00:54]} c5 {[%emt 0:06:17]} 11. dxc6 {[%emt 0:03:31]} Nxc6 {[%emt 0:00:18]} 12. Rc1 {[%emt 0:02:03]} h6 {[%emt 0:04:14]} 13. Bd2 {[%emt 0:00:06]} Be6 {[%emt 0:06:51]} 14. Ne1 {[%emt 0:00:54]} Qd7 {[%emt 0:09:11]} 15. Nd5 {[%emt 0:01:52]} Kh7 {[%emt 0:03:21]} 16. Bc3 {[%emt 0:09:30]} Ne8 {[%emt 0:01:01]} 17. Bxg7 {[%emt 0:00:53]} Nxg7 {[%emt 0:01:02]} 18. Nd3 {[%emt 0:02:00]} Bh3 {[%emt 0:06:04]} 19. Bxh3 {[%emt 0:05:45]} Qxh3 {[%emt 0:00:03]} 20. b4 {[%emt 0:00:44]} Rbe8 {[%emt 0:06:03]} 21. b5 {[%emt 0:06:58]} Ne5 {[%emt 0:07:07]} 22. N3f4 {[%emt 0:15:50]} Qd7 {[%emt 0:03:07]} 23. bxa6 {[%emt 0:01:46]} bxa6 {[%emt 0:00:08]} 24. c5 {[%emt 0:00:13]} dxc5 {[%emt 0:10:05]} 25. Rxc5 {[%emt 0:00:24]} Rc8 {[%emt 0:05:19]} 26. Qc2 {[%emt 0:07:40]} Rxc5 {[%emt 0:02:49]} 27. Qxc5 {[%emt 0:00:02]} g5 {[%emt 0:12:31]} 28. Rd1 {[%emt 0:07:33]} Rc8 {[%emt 0:05:28]} 29. Qd4 {[%emt 0:05:23]} f6 {[%emt 0:00:33]} 30. Ng2 {[%emt 0:14:22]} Kh8 {[%emt 0:00:08]} 31. Nge3 {[%emt 0:00:41]} Qe6 {[%emt 0:01:29]} 32. Qb4 {[%emt 0:01:31]} Ng6 {[%emt 0:00:23]} 33. Qb6 {[%emt 0:03:30]} Qxb6 34. Nxb6 {[%emt 0:00:02]} Rc6 {[%emt 0:01:27]} 35. Nec4 {[%emt 0:00:39]} Ne5 {[%emt 0:01:07]} 36. Nxe5 {[%emt 0:02:21]} fxe5 {[%emt 0:00:39]} 37. Rd8+ {[%emt 0:01:55]} Kh7 {[%emt 0:00:06]} 38. Nd7 {[%emt 0:00:22]} Rd6 {[%emt 0:00:54]} 39. Nf8+ {[%emt 0:01:28]} Kg8 {[%emt 0:00:09]} 40. Ne6+ {[%emt 0:00:00]} Kf7 {[%emt 0:00:00]} 41. Rxd6 {[%emt 0:02:35]} exd6 {[%emt 0:00:49]} 42. Nxg7 {[%emt 0:16:38]} 1/2-1/2

[Event "POL-chT 2 Liga 2019"]
[Site "Poronin"]
[Date "2019.09.14"]
[Round "8.4"]
[White "Malovanyi, Yulian"]
[Black "Szpar, Milosz"]
[Result "1-0"]
[ECO "B23"]
[WhiteElo "2320"]
[BlackElo "2309"]
[Annotator "NA"]
[PlyCount "127"]
[EventDate "2019.09.07"]
[EventType "team-tourn"]
[EventCountry "POL"]
[SourceTitle "playchess.com"]
[Source "ChessBase"]
[SourceQuality "1"]
[TimeControl "40/5400+30:1800+30"]

1. e4 {[%emt 0:00:00]} c5 {[%emt 0:00:00]} 2. Nc3 {[%emt 0:00:00]} Nc6 {[%emt 0:00:06]} 3. Nge2 {[%emt 0:00:00]} e5 {[%emt 0:01:44]} 4. Nd5 {[%emt 0:00:03]} Nge7 {[%emt 0:04:13]} 5. Nec3 {[%emt 0:00:13]} d6 {[%emt 0:01:39]} 6. Bc4 {[%emt 0:00:32]} Nxd5 {[%emt 0:00:42]} 7. Nxd5 {[%emt 0:00:15]} Be7 {[%emt 0:01:16]} 8. d3 {[%emt 0:02:26]} O-O {[%emt 0:00:52]} 9. f4 {[%emt 0:03:59]} exf4 {[%emt 0:10:47]} 10. Bxf4 {[%emt 0:01:42]} Bg5 {[%emt 0:01:33]} 11. O-O {[%emt 0:03:10]} Rb8 {[%emt 0:19:32]} 12. a4 {[%emt 0:01:21]} Be6 {[%emt 0:00:55]} 13. Qd2 {[%emt 0:01:00]} Bxf4 {[%emt 0:07:05]} 14. Rxf4 {[%emt 0:04:45]} Ne7 {[%emt 0:05:10]} 15. Nxe7+ {[%emt 0:03:02]} Qxe7 {[%emt 0:00:10]} 16. b3 {[%emt 0:00:10]} Qd8 {[%emt 0:07:01]} 17. Raf1 {[%emt 0:05:20]} d5 {[%emt 0:03:29]} 18. exd5 {[%emt 0:02:08]} Bxd5 {[%emt 0:00:05]} 19. Qf2 {[%emt 0:00:51]} Bxc4 {[%emt 0:01:14]} 20. bxc4 {[%emt 0:01:35]} Qc7 {[%emt 0:03:16]} 21. Re4 {[%emt 0:14:50]} Rfe8 {[%emt 0:02:47]} 22. Rfe1 {[%emt 0:00:23]} Kf8 {[%emt 0:03:47]} 23. Qf5 {[%emt 0:00:51]} Re7 24. Re5 Rxe5 {[%emt 0:04:03]} 25. Re4 {[%emt 0:01:30]} Kg8 26. Qxe5 {[%emt 0:08:20]} Qxe5 {[%emt 0:07:32]} 27. Rxe5 {[%emt 0:00:30]} b6 {[%emt 0:00:12]} 28. Re7 {[%emt 0:00:13]} a5 {[%emt 0:03:10]} 29. Kf2 {[%emt 0:01:18]} Kf8 {[%emt 0:01:58]} 30. Rc7 {[%emt 0:00:16]} Re8 {[%emt 0:01:30]} 31. Rc6 {[%emt 0:07:11]} Rb8 {[%emt 0:07:51]} 32. c3 {[%emt 0:05:21]} Ke7 {[%emt 0:00:18]} 33. Rc7+ {[%emt 0:01:18]} Ke6 {[%emt 0:00:09]} 34. d4 {[%emt 0:01:33]} cxd4 {[%emt 0:01:27]} 35. cxd4 {[%emt 0:00:07]} Rd8 {[%emt 0:00:34]} 36. Ke3 {[%emt 0:01:19]} Rd7 {[%emt 0:00:32]} 37. Rc8 {[%emt 0:08:07]} Rd6 {[%emt 0:00:12]} 38. Rh8 {[%emt 0:01:18]} h6 {[%emt 0:00:23]} 39. Rg8 {[%emt 0:00:48]} g5 {[%emt 0:01:11]} 40. Rb8 {[%emt 0:05:56]} f5 {[%emt 0:00:58]} 41. Rb7 {[%emt 0:00:29]} Kf6 {[%emt 0:00:27]} 42. d5 {[%emt 0:01:09]} h5 {[%emt 0:01:18]} 43. g3 {[%emt 0:02:04]} Ke5 {[%emt 0:01:57]} 44. Re7+ {[%emt 0:00:19]} Kf6 {[%emt 0:00:07]} 45. Re8 {[%emt 0:00:36]} Kf7 {[%emt 0:01:08]} 46. Rb8 {[%emt 0:02:46]} Rf6 {[%emt 0:01:04]} 47. Rb7+ {[%emt 0:19:14]} Ke8 {[%emt 0:05:30]} 48. h4 {[%emt 0:06:31]} gxh4 {[%emt 0:02:31]} 49. gxh4 {[%emt 0:00:05]} Rg6 {[%emt 0:00:03]} 50. Kf4 {[%emt 0:04:08]} Rg4+ {[%emt 0:01:21]} 51. Kxf5 {[%emt 0:00:31]} Rxh4 {[%emt 0:06:12]} 52. Rc7 {[%emt 0:03:11]} Rg4 {[%emt 0:05:04]} 53. d6 {[%emt 0:01:08]} Kd8 {[%emt 0:01:49]} 54. c5 {[%emt 0:05:49]} bxc5 {[%emt 0:01:27]} 55. Rh7 {[%emt 0:00:47]} c4 {[%emt 0:07:00]} 56. Rxh5 {[%emt 0:00:40]} Rg1 {[%emt 0:00:56]} 57. Ke6 {[%emt 0:00:12]} Rg6+ {[%emt 0:00:26]} 58. Kd5 {[%emt 0:00:07]} c3 {[%emt 0:00:25]} 59. Kc6 {[%emt 0:01:27]} Ke8 {[%emt 0:00:47]} 60. Re5+ {[%emt 0:00:34]} Kf7 {[%emt 0:00:32]} 61. Rc5 {[%emt 0:01:56]} Rg4 {[%emt 0:00:32]} 62. d7 {[%emt 0:00:47]} Rd4 {[%emt 0:00:28]} 63. Rxc3 {[%emt 0:01:13]} Rd1 {[%emt 0:00:32]} 64. Kc7 {[%emt 0:00:08]} 1-0